[Event "Live Chess"]
[Site "Chess.com"]
[Date "2010.12.12"]
[Round "-"]
[White "dwayneb66"]
[Black "hipposcottimus"]
[Result "0-1"]
[CurrentPosition "5r2/p5kp/1p6/8/8/PP4PP/4q1K1/5R2 w - -"]
[Timezone "UTC"]
[ECO "A00"]
[ECOUrl "https://www.chess.com/openings/Kings-Fianchetto-Opening-1...e5-2.a3-d5"]
[UTCDate "2010.12.12"]
[UTCTime "05:02:16"]
[WhiteElo "1295"]
[BlackElo "1429"]
[TimeControl "600+1"]
[Termination "hipposcottimus won by resignation"]
[StartTime "05:02:16"]
[EndDate "2010.12.12"]
[EndTime "05:14:39"]
[Link "https://www.chess.com/game/live/76448408"]

1. g3 {[%clk 0:10:00]} 1... e5 {[%clk 0:10:00]} 2. a3 {[%clk 0:09:59.9]} 2... d5 {[%clk 0:09:59.9]} 3. d3 {[%clk 0:10:00]} 3... c5 {[%clk 0:09:58.1]} 4. Bg2 {[%clk 0:10:00.5]} 4... Be7 {[%clk 0:09:51.7]} 5. Bd2 {[%clk 0:09:56.1]} 5... f5 {[%clk 0:09:47]} 6. Nf3 {[%clk 0:09:52.8]} 6... Nc6 {[%clk 0:09:43.6]} 7. Bc3 {[%clk 0:09:25.1]} 7... Qd6 {[%clk 0:09:31.1]} 8. Bd2 {[%clk 0:09:09.5]} 8... Nf6 {[%clk 0:09:21.2]} 9. O-O {[%clk 0:09:05.8]} 9... e4 {[%clk 0:09:08.6]} 10. dxe4 {[%clk 0:09:04.8]} 10... fxe4 {[%clk 0:09:07.2]} 11. Ne1 {[%clk 0:08:58.1]} 11... Qc7 {[%clk 0:08:55.6]} 12. Nc3 {[%clk 0:08:49.2]} 12... b6 {[%clk 0:08:37.8]} 13. e3 {[%clk 0:08:44.8]} 13... Bb7 {[%clk 0:08:32.7]} 14. Nb5 {[%clk 0:08:40.5]} 14... Qe5 {[%clk 0:08:19.2]} 15. Bc3 {[%clk 0:08:27.2]} 15... d4 {[%clk 0:07:33.9]} 16. exd4 {[%clk 0:08:21.8]} 16... cxd4 {[%clk 0:07:30.9]} 17. Nxd4 {[%clk 0:08:16.7]} 17... Nxd4 {[%clk 0:06:47.2]} 18. Qxd4 {[%clk 0:08:02.5]} 18... Qe6 {[%clk 0:06:06.1]} 19. Qa4+ {[%clk 0:07:41.9]} 19... Bc6 {[%clk 0:06:03]} 20. Qd4 {[%clk 0:07:27]} 20... O-O {[%clk 0:05:57.3]} 21. b3 {[%clk 0:07:21.6]} 21... Bc5 {[%clk 0:05:51.2]} 22. Qc4 {[%clk 0:07:12.9]} 22... Bd5 {[%clk 0:05:43.7]} 23. Qe2 {[%clk 0:07:06.3]} 23... Ng4 {[%clk 0:05:31.6]} 24. h3 {[%clk 0:06:27.3]} 24... Nxf2 {[%clk 0:05:28.5]} 25. Rxf2 {[%clk 0:06:20.6]} 25... Bxf2+ {[%clk 0:05:26.5]} 26. Kh2 {[%clk 0:06:16.1]} 26... e3 {[%clk 0:05:24.4]} 27. Nd3 {[%clk 0:06:07.2]} 27... Bxg2 {[%clk 0:05:21.4]} 28. Kxg2 {[%clk 0:06:02.1]} 28... Qg6 {[%clk 0:04:59.1]} 29. Nxf2 {[%clk 0:05:45.7]} 29... Rxf2+ {[%clk 0:04:54.4]} 30. Qxf2 {[%clk 0:05:43.8]} 30... exf2 {[%clk 0:04:54.5]} 31. Kxf2 {[%clk 0:05:39.5]} 31... Qxc2+ {[%clk 0:04:55.1]} 32. Kg1 {[%clk 0:05:33.8]} 32... Rf8 {[%clk 0:04:54.8]} 33. Bxg7 {[%clk 0:05:17]} 33... Kxg7 {[%clk 0:04:47.5]} 34. Rf1 {[%clk 0:05:09.3]} 34... Qc5+ {[%clk 0:04:45.4]} 35. Kg2 {[%clk 0:05:03.2]} 35... Qd5+ {[%clk 0:04:38.8]} 36. Kg1 {[%clk 0:05:00.1]} 36... Qd4+ {[%clk 0:04:36.7]} 37. Kg2 {[%clk 0:04:58.9]} 37... Qe4+ {[%clk 0:04:30.6]} 38. Kg1 {[%clk 0:04:54.9]} 38... Qe3+ {[%clk 0:04:28.2]} 39. Kg2 {[%clk 0:04:49.3]} 39... Qe2+ {[%clk 0:04:26]} 0-1

[Event "Live Chess"]
[Site "Chess.com"]
[Date "2010.12.12"]
[Round "-"]
[White "KibitzerTBone"]
[Black "hipposcottimus"]
[Result "1-0"]
[CurrentPosition "1r5k/p5pp/5r2/5p2/1Q1p4/1P1P4/P1P2PPP/RN2R1K1 b - -"]
[Timezone "UTC"]
[ECO "C61"]
[ECOUrl "https://www.chess.com/openings/Ruy-Lopez-Opening-Birds-Defense-4.Nxd4-exd4-5.O-O-c6-6.Bc4"]
[UTCDate "2010.12.12"]
[UTCTime "04:31:13"]
[WhiteElo "1533"]
[BlackElo "1424"]
[TimeControl "300+3"]
[Termination "KibitzerTBone won by resignation"]
[StartTime "04:31:13"]
[EndDate "2010.12.12"]
[EndTime "04:38:05"]
[Link "https://www.chess.com/game/live/76442528"]

1. e4 {[%clk 0:05:00]} 1... e5 {[%clk 0:05:00]} 2. Nf3 {[%clk 0:05:01.3]} 2... Nc6 {[%clk 0:05:01.3]} 3. Bb5 {[%clk 0:05:03.2]} 3... Nd4 {[%clk 0:04:57.2]} 4. Nxd4 {[%clk 0:05:03.7]} 4... exd4 {[%clk 0:04:59]} 5. O-O {[%clk 0:05:01]} 5... c6 {[%clk 0:04:59.7]} 6. Bc4 {[%clk 0:04:58.4]} 6... d5 {[%clk 0:05:02]} 7. exd5 {[%clk 0:04:59.2]} 7... cxd5 {[%clk 0:05:02.3]} 8. Bb3 {[%clk 0:05:00.3]} 8... Be7 {[%clk 0:05:04.5]} 9. d3 {[%clk 0:04:45]} 9... f5 {[%clk 0:05:01.8]} 10. Re1 {[%clk 0:04:34.5]} 10... Nf6 {[%clk 0:04:47.4]} 11. Qf3 {[%clk 0:04:23.9]} 11... O-O {[%clk 0:04:43.9]} 12. Bg5 {[%clk 0:04:10.4]} 12... Qd6 {[%clk 0:04:08.8]} 13. Bxf6 {[%clk 0:03:21.7]} 13... Rxf6 {[%clk 0:03:55]} 14. Bxd5+ {[%clk 0:03:18.9]} 14... Kh8 {[%clk 0:03:55]} 15. Bxb7 {[%clk 0:03:07.9]} 15... Bxb7 {[%clk 0:03:45.5]} 16. Qxb7 {[%clk 0:03:08.5]} 16... Rb8 {[%clk 0:03:43.4]} 17. Qxe7 {[%clk 0:02:45.9]} 17... Qb6 {[%clk 0:03:31]} 18. b3 {[%clk 0:01:45.2]} 18... Qb4 {[%clk 0:03:26.3]} 19. Qxb4 {[%clk 0:01:42.6]} 1-0

[Event "Live Chess"]
[Site "Chess.com"]
[Date "2010.12.12"]
[Round "-"]
[White "raider_1_1_1"]
[Black "hipposcottimus"]
[Result "0-1"]
[CurrentPosition "r1b1k2r/ppp3pp/5n2/3Knp2/1b3B2/2q3P1/P3QP1P/5B1R w kq -"]
[Timezone "UTC"]
[ECO "C45"]
[ECOUrl "https://www.chess.com/openings/Scotch-Game"]
[UTCDate "2010.12.12"]
[UTCTime "04:25:06"]
[WhiteElo "1200"]
[BlackElo "1430"]
[TimeControl "840"]
[Termination "hipposcottimus won by checkmate"]
[StartTime "04:25:06"]
[EndDate "2010.12.12"]
[EndTime "04:28:46"]
[Link "https://www.chess.com/game/live/76441319"]

1. e4 {[%clk 0:14:00]} 1... e5 {[%clk 0:14:00]} 2. Nf3 {[%clk 0:13:58.8]} 2... Nc6 {[%clk 0:13:56.8]} 3. d4 {[%clk 0:13:56.3]} 3... d5 {[%clk 0:13:52.7]} 4. exd5 {[%clk 0:13:39.1]} 4... Qxd5 {[%clk 0:13:48.7]} 5. Nxe5 {[%clk 0:13:31]} 5... Nxe5 {[%clk 0:13:43.6]} 6. Qe2 {[%clk 0:13:18.8]} 6... Qxd4 {[%clk 0:13:25.8]} 7. Be3 {[%clk 0:13:12.7]} 7... Qxb2 {[%clk 0:13:13.9]} 8. Bf4 {[%clk 0:12:29.3]} 8... Qxa1 {[%clk 0:13:09.6]} 9. g3 {[%clk 0:12:18.1]} 9... Qxb1+ {[%clk 0:13:06.9]} 10. Kd2 {[%clk 0:12:10.6]} 10... Bb4+ {[%clk 0:13:01.5]} 11. c3 {[%clk 0:12:08.2]} 11... Qb2+ {[%clk 0:12:56.2]} 12. Ke3 {[%clk 0:12:03.2]} 12... Qxc3+ {[%clk 0:12:49.4]} 13. Ke4 {[%clk 0:11:54.6]} 13... f5+ {[%clk 0:12:38.8]} 14. Kd5 {[%clk 0:11:49.8]} 14... Nf6# {[%clk 0:12:37.2]} 0-1

[Event "Live Chess"]
[Site "Chess.com"]
[Date "2010.12.12"]
[Round "-"]
[White "hipposcottimus"]
[Black "suoicarov"]
[Result "0-1"]
[CurrentPosition "8/8/8/3qk3/1K6/8/8/8 w - -"]
[Timezone "UTC"]
[ECO "A06"]
[ECOUrl "https://www.chess.com/openings/Reti-Opening-Tennison-Gambit"]
[UTCDate "2010.12.12"]
[UTCTime "03:55:33"]
[WhiteElo "1626"]
[BlackElo "1759"]
[TimeControl "60"]
[Termination "suoicarov won on time"]
[StartTime "03:55:33"]
[EndDate "2010.12.12"]
[EndTime "03:57:55"]
[Link "https://www.chess.com/game/live/76435691"]

1. e4 {[%clk 0:01:00]} 1... d5 {[%clk 0:01:00]} 2. Nf3 {[%clk 0:00:59.7]} 2... dxe4 {[%clk 0:00:58.3]} 3. Ng5 {[%clk 0:00:59.4]} 3... f5 {[%clk 0:00:54.8]} 4. f3 {[%clk 0:00:55.9]} 4... h6 {[%clk 0:00:54.4]} 5. Nh3 {[%clk 0:00:53.9]} 5... exf3 {[%clk 0:00:52.8]} 6. Qxf3 {[%clk 0:00:53.5]} 6... Nf6 {[%clk 0:00:50.6]} 7. Bb5+ {[%clk 0:00:53.1]} 7... c6 {[%clk 0:00:49.4]} 8. Ba4 {[%clk 0:00:52.1]} 8... Qd5 {[%clk 0:00:45]} 9. Bb3 {[%clk 0:00:51.8]} 9... Qxf3 {[%clk 0:00:43.4]} 10. gxf3 {[%clk 0:00:51.5]} 10... Nbd7 {[%clk 0:00:41.4]} 11. d3 {[%clk 0:00:51.3]} 11... Ne5 {[%clk 0:00:40.1]} 12. Bf4 {[%clk 0:00:51]} 12... Nxf3+ {[%clk 0:00:38.9]} 13. Kf2 {[%clk 0:00:46.8]} 13... Nh4 {[%clk 0:00:38.9]} 14. Nd2 {[%clk 0:00:45.9]} 14... Ng6 {[%clk 0:00:38.1]} 15. Nc4 {[%clk 0:00:42.5]} 15... Nxf4 {[%clk 0:00:36.7]} 16. Nxf4 {[%clk 0:00:42.2]} 16... Ng4+ {[%clk 0:00:36.3]} 17. Kg3 {[%clk 0:00:39.9]} 17... e6 {[%clk 0:00:35.9]} 18. h3 {[%clk 0:00:37.4]} 18... Nf6 {[%clk 0:00:33.4]} 19. Rae1 {[%clk 0:00:37.1]} 19... Bd6 {[%clk 0:00:31.3]} 20. Ne5 {[%clk 0:00:36.4]} 20... Bxe5 {[%clk 0:00:30.3]} 21. Rxe5 {[%clk 0:00:36.1]} 21... O-O {[%clk 0:00:29.2]} 22. Nxe6 {[%clk 0:00:31.5]} 22... Bxe6 {[%clk 0:00:26.8]} 23. Rxe6 {[%clk 0:00:30.3]} 23... Kh8 {[%clk 0:00:25.7]} 24. Re8 {[%clk 0:00:28.9]} 24... Rfxe8 {[%clk 0:00:24.3]} 25. Rf1 {[%clk 0:00:27.9]} 25... Re3+ {[%clk 0:00:22.7]} 26. Kf2 {[%clk 0:00:26.5]} 26... Rae8 {[%clk 0:00:22.4]} 27. Kg2 {[%clk 0:00:24.9]} 27... h5 {[%clk 0:00:19.9]} 28. Rxf5 {[%clk 0:00:23.8]} 28... Re2+ {[%clk 0:00:18.3]} 29. Kf3 {[%clk 0:00:22.3]} 29... R2e3+ {[%clk 0:00:16.8]} 30. Kf4 {[%clk 0:00:20.8]} 30... Nd5+ {[%clk 0:00:16.5]} 31. Kg5 {[%clk 0:00:19.8]} 31... Rg3+ {[%clk 0:00:15.3]} 32. Kh4 {[%clk 0:00:17.1]} 32... Ne3 {[%clk 0:00:12.4]} 33. Kxg3 {[%clk 0:00:15.8]} 33... Nxf5+ {[%clk 0:00:11.9]} 34. Kf4 {[%clk 0:00:13.1]} 34... Nd4 {[%clk 0:00:11.9]} 35. Kg5 {[%clk 0:00:11.5]} 35... Nxb3 {[%clk 0:00:11.5]} 36. axb3 {[%clk 0:00:11.1]} 36... Re2 {[%clk 0:00:10.6]} 37. Kxh5 {[%clk 0:00:10.3]} 37... Rxc2 {[%clk 0:00:10.6]} 38. Kh4 {[%clk 0:00:09.8]} 38... Rxb2 {[%clk 0:00:10.6]} 39. Kg5 {[%clk 0:00:09.5]} 39... Rxb3 {[%clk 0:00:10.6]} 40. h4 {[%clk 0:00:09.2]} 40... Rxd3 {[%clk 0:00:10.6]} 41. h5 {[%clk 0:00:08.9]} 41... Rh3 {[%clk 0:00:10.6]} 42. Kg6 {[%clk 0:00:08.7]} 42... Rxh5 {[%clk 0:00:10.1]} 43. Kxh5 {[%clk 0:00:07.9]} 43... a5 {[%clk 0:00:10.1]} 44. Kg4 {[%clk 0:00:07.6]} 44... b5 {[%clk 0:00:10.1]} 45. Kf4 {[%clk 0:00:07.4]} 45... a4 {[%clk 0:00:10.1]} 46. Ke5 {[%clk 0:00:07.1]} 46... g6 {[%clk 0:00:10.1]} 47. Kd4 {[%clk 0:00:06.7]} 47... g5 {[%clk 0:00:10.1]} 48. Kc5 {[%clk 0:00:06.5]} 48... g4 {[%clk 0:00:10.1]} 49. Kxc6 {[%clk 0:00:06.2]} 49... g3 {[%clk 0:00:10.1]} 50. Kxb5 {[%clk 0:00:05.9]} 50... g2 {[%clk 0:00:10.1]} 51. Kxa4 {[%clk 0:00:05.7]} 51... g1=Q {[%clk 0:00:10.1]} 52. Kb5 {[%clk 0:00:05.4]} 52... Qd1 {[%clk 0:00:09]} 53. Kc6 {[%clk 0:00:05.1]} 53... Kg7 {[%clk 0:00:08.7]} 54. Kc5 {[%clk 0:00:04.2]} 54... Qg4 {[%clk 0:00:08.3]} 55. Kc6 {[%clk 0:00:02.7]} 55... Qe6+ {[%clk 0:00:07.8]} 56. Kc5 {[%clk 0:00:02.5]} 56... Kf6 {[%clk 0:00:07]} 57. Kb5 {[%clk 0:00:01.1]} 57... Ke5 {[%clk 0:00:07]} 58. Kb4 {[%clk 0:00:00.8]} 58... Qd5 {[%clk 0:00:06.8]} 0-1

[Event "Live Chess"]
[Site "Chess.com"]
[Date "2010.12.12"]
[Round "-"]
[White "hipposcottimus"]
[Black "kublitz44"]
[Result "0-1"]
[CurrentPosition "6k1/6pp/R1pp4/2p3p1/2Kpr3/1Pr5/P7/8 w - -"]
[Timezone "UTC"]
[ECO "B51"]
[ECOUrl "https://www.chess.com/openings/Sicilian-Defense-Canal-Attack-3...Nc6"]
[UTCDate "2010.12.12"]
[UTCTime "03:35:21"]
[WhiteElo "1626"]
[BlackElo "1695"]
[TimeControl "60"]
[Termination "kublitz44 won by checkmate"]
[StartTime "03:35:21"]
[EndDate "2010.12.12"]
[EndTime "03:37:07"]
[Link "https://www.chess.com/game/live/76431991"]

1. e4 {[%clk 0:01:00]} 1... c5 {[%clk 0:01:00]} 2. Nf3 {[%clk 0:00:59.7]} 2... Nc6 {[%clk 0:00:59.4]} 3. Bb5 {[%clk 0:00:58.8]} 3... d6 {[%clk 0:00:58.3]} 4. Bxc6+ {[%clk 0:00:58]} 4... bxc6 {[%clk 0:00:57.5]} 5. c4 {[%clk 0:00:56.5]} 5... Bg4 {[%clk 0:00:56.9]} 6. d3 {[%clk 0:00:56.2]} 6... Nf6 {[%clk 0:00:56.1]} 7. Qe2 {[%clk 0:00:55.8]} 7... e5 {[%clk 0:00:55.3]} 8. Qe3 {[%clk 0:00:54.8]} 8... Be7 {[%clk 0:00:54.4]} 9. Nc3 {[%clk 0:00:53.3]} 9... a6 {[%clk 0:00:53]} 10. Ng5 {[%clk 0:00:50.8]} 10... Bh5 {[%clk 0:00:49.3]} 11. O-O {[%clk 0:00:48.4]} 11... Ng4 {[%clk 0:00:48.4]} 12. Qd2 {[%clk 0:00:46.3]} 12... Bxg5 {[%clk 0:00:47.2]} 13. Qxg5 {[%clk 0:00:44.7]} 13... Qxg5 {[%clk 0:00:45.8]} 14. Bxg5 {[%clk 0:00:44.5]} 14... f6 {[%clk 0:00:45.1]} 15. f3 {[%clk 0:00:43.7]} 15... fxg5 {[%clk 0:00:39.8]} 16. fxg4 {[%clk 0:00:42.2]} 16... Bxg4 {[%clk 0:00:39.1]} 17. Na4 {[%clk 0:00:40.9]} 17... Bd7 {[%clk 0:00:37.1]} 18. Nb6 {[%clk 0:00:40.3]} 18... Rd8 {[%clk 0:00:35.6]} 19. d4 {[%clk 0:00:35.8]} 19... exd4 {[%clk 0:00:33.4]} 20. Rad1 {[%clk 0:00:35.4]} 20... Be6 {[%clk 0:00:32.1]} 21. Rd3 {[%clk 0:00:29.2]} 21... Rb8 {[%clk 0:00:31.1]} 22. Na4 {[%clk 0:00:26.6]} 22... Bxc4 {[%clk 0:00:29.3]} 23. Ra3 {[%clk 0:00:26.3]} 23... Bxf1 {[%clk 0:00:28]} 24. Kxf1 {[%clk 0:00:26.1]} 24... O-O+ {[%clk 0:00:27]} 25. Ke2 {[%clk 0:00:24.1]} 25... Rbe8 {[%clk 0:00:26.4]} 26. Kd3 {[%clk 0:00:23.8]} 26... Rf2 {[%clk 0:00:24.5]} 27. b3 {[%clk 0:00:22.3]} 27... Rxg2 {[%clk 0:00:23.5]} 28. Nb2 {[%clk 0:00:22]} 28... Rxh2 {[%clk 0:00:22.7]} 29. Nd1 {[%clk 0:00:20.3]} 29... Rh3+ {[%clk 0:00:22.2]} 30. Ne3 {[%clk 0:00:18.2]} 30... Rxe3+ {[%clk 0:00:19]} 31. Kc4 {[%clk 0:00:17.9]} 31... R8xe4 {[%clk 0:00:18.1]} 32. Rxa6 {[%clk 0:00:14.4]} 32... Rc3# {[%clk 0:00:16.5]} 0-1

[Event "Live Chess"]
[Site "Chess.com"]
[Date "2010.12.12"]
[Round "-"]
[White "VNFox"]
[Black "hipposcottimus"]
[Result "1-0"]
[CurrentPosition "8/r4ppp/4P3/4P1k1/8/3B2P1/1PQ2P1P/5RK1 b - -"]
[Timezone "UTC"]
[ECO "C20"]
[ECOUrl "https://www.chess.com/openings/Kings-Pawn-Opening-Leonardis-Variation"]
[UTCDate "2010.12.12"]
[UTCTime "03:26:33"]
[WhiteElo "1685"]
[BlackElo "1633"]
[TimeControl "60"]
[Termination "VNFox won on time"]
[StartTime "03:26:33"]
[EndDate "2010.12.12"]
[EndTime "03:28:39"]
[Link "https://www.chess.com/game/live/76430356"]

1. e4 {[%clk 0:01:00]} 1... e5 {[%clk 0:01:00]} 2. d3 {[%clk 0:00:59.7]} 2... Nc6 {[%clk 0:00:59.6]} 3. Nf3 {[%clk 0:00:59.4]} 3... Nf6 {[%clk 0:00:59]} 4. Bg5 {[%clk 0:00:59.1]} 4... d5 {[%clk 0:00:58.6]} 5. Bxf6 {[%clk 0:00:58.7]} 5... Qxf6 {[%clk 0:00:57.6]} 6. Nc3 {[%clk 0:00:58.5]} 6... d4 {[%clk 0:00:56.8]} 7. Nd5 {[%clk 0:00:57.5]} 7... Qg6 {[%clk 0:00:55.7]} 8. Nxc7+ {[%clk 0:00:56]} 8... Kd7 {[%clk 0:00:54]} 9. Nxa8 {[%clk 0:00:55.6]} 9... b6 {[%clk 0:00:51.2]} 10. c3 {[%clk 0:00:55.2]} 10... Ba6 {[%clk 0:00:50.5]} 11. cxd4 {[%clk 0:00:53.4]} 11... Bd6 {[%clk 0:00:50.1]} 12. d5 {[%clk 0:00:51.7]} 12... Rxa8 {[%clk 0:00:47.7]} 13. dxc6+ {[%clk 0:00:49.9]} 13... Kxc6 {[%clk 0:00:46.9]} 14. Qc2+ {[%clk 0:00:49.5]} 14... Kd7 {[%clk 0:00:46.7]} 15. g3 {[%clk 0:00:46.7]} 15... Rc8 {[%clk 0:00:46.4]} 16. Qd2 {[%clk 0:00:44.5]} 16... Qe6 {[%clk 0:00:44]} 17. Rc1 {[%clk 0:00:44]} 17... Rd8 {[%clk 0:00:41.7]} 18. Be2 {[%clk 0:00:42.1]} 18... Qxa2 {[%clk 0:00:40.6]} 19. O-O {[%clk 0:00:40.6]} 19... Bb4 {[%clk 0:00:38.4]} 20. Qc2 {[%clk 0:00:38.7]} 20... Bd6 {[%clk 0:00:32.9]} 21. Qc6+ {[%clk 0:00:37.1]} 21... Ke7 {[%clk 0:00:31.2]} 22. Ra1 {[%clk 0:00:31.6]} 22... Qe6 {[%clk 0:00:30.8]} 23. Rxa6 {[%clk 0:00:30.3]} 23... Qh3 {[%clk 0:00:28.6]} 24. Rxa7+ {[%clk 0:00:28.7]} 24... Ke6 {[%clk 0:00:27.4]} 25. Qd5+ {[%clk 0:00:27.3]} 25... Kf6 {[%clk 0:00:26]} 26. Rb7 {[%clk 0:00:22.8]} 26... Be7 {[%clk 0:00:19.7]} 27. Qb5 {[%clk 0:00:20.7]} 27... Qe6 {[%clk 0:00:16.3]} 28. Rxb6 {[%clk 0:00:19.8]} 28... Qxb6 {[%clk 0:00:14.5]} 29. Qxb6+ {[%clk 0:00:19.1]} 29... Rd6 {[%clk 0:00:14.3]} 30. Qb4 {[%clk 0:00:17.7]} 30... Re6 {[%clk 0:00:13.3]} 31. Qc3 {[%clk 0:00:17.3]} 31... Rd6 {[%clk 0:00:12.6]} 32. d4 {[%clk 0:00:16]} 32... Ra6 {[%clk 0:00:11.6]} 33. Qc4 {[%clk 0:00:15.1]} 33... Ra3 {[%clk 0:00:09.3]} 34. dxe5+ {[%clk 0:00:14.7]} 34... Kg6 {[%clk 0:00:06.7]} 35. Qc2 {[%clk 0:00:14.3]} 35... Bg5 {[%clk 0:00:05.6]} 36. Bd3 {[%clk 0:00:13.7]} 36... Kh6 {[%clk 0:00:04.1]} 37. Nxg5 {[%clk 0:00:13.3]} 37... Kxg5 {[%clk 0:00:03.5]} 38. e6 {[%clk 0:00:12.8]} 38... Ra7 {[%clk 0:00:01.1]} 39. e5 {[%clk 0:00:12.3]} 1-0

[Event "Live Chess"]
[Site "Chess.com"]
[Date "2010.12.12"]
[Round "-"]
[White "hipposcottimus"]
[Black "VNFox"]
[Result "1-0"]
[CurrentPosition "2r2k2/r3n1bp/3PQ1p1/4pp2/q7/8/PP3PPP/5RK1 b - -"]
[Timezone "UTC"]
[ECO "C41"]
[ECOUrl "https://www.chess.com/openings/Philidor-Defense-3.Bc4"]
[UTCDate "2010.12.12"]
[UTCTime "03:24:18"]
[WhiteElo "1640"]
[BlackElo "1678"]
[TimeControl "60"]
[Termination "hipposcottimus won on time"]
[StartTime "03:24:18"]
[EndDate "2010.12.12"]
[EndTime "03:26:17"]
[Link "https://www.chess.com/game/live/76429958"]

1. e4 {[%clk 0:01:00]} 1... e5 {[%clk 0:01:00]} 2. Nf3 {[%clk 0:00:59.8]} 2... d6 {[%clk 0:00:59.2]} 3. Bc4 {[%clk 0:00:59.5]} 3... Nc6 {[%clk 0:00:58.8]} 4. d4 {[%clk 0:00:58.9]} 4... Bg4 {[%clk 0:00:58.3]} 5. Qd3 {[%clk 0:00:57]} 5... Bxf3 {[%clk 0:00:55]} 6. Qxf3 {[%clk 0:00:55.7]} 6... Qf6 {[%clk 0:00:54.7]} 7. Qd3 {[%clk 0:00:54.4]} 7... Nxd4 {[%clk 0:00:53.2]} 8. Be3 {[%clk 0:00:53.1]} 8... c5 {[%clk 0:00:51.5]} 9. Bxd4 {[%clk 0:00:52]} 9... cxd4 {[%clk 0:00:50.8]} 10. Bb5+ {[%clk 0:00:51.1]} 10... Kd8 {[%clk 0:00:47.5]} 11. O-O {[%clk 0:00:50.8]} 11... a6 {[%clk 0:00:46.8]} 12. Ba4 {[%clk 0:00:50.4]} 12... g6 {[%clk 0:00:43.6]} 13. c3 {[%clk 0:00:49.1]} 13... Bg7 {[%clk 0:00:41.1]} 14. cxd4 {[%clk 0:00:48.2]} 14... Ne7 {[%clk 0:00:40.3]} 15. d5 {[%clk 0:00:46.8]} 15... b5 {[%clk 0:00:35.8]} 16. Bb3 {[%clk 0:00:44.6]} 16... Qf4 {[%clk 0:00:33.8]} 17. Nc3 {[%clk 0:00:42.8]} 17... f5 {[%clk 0:00:33]} 18. Nxb5 {[%clk 0:00:40.4]} 18... axb5 {[%clk 0:00:31.2]} 19. Qxb5 {[%clk 0:00:40.1]} 19... Qxe4 {[%clk 0:00:26.6]} 20. Ba4 {[%clk 0:00:38.6]} 20... Ra7 {[%clk 0:00:23]} 21. Rac1 {[%clk 0:00:34]} 21... Qxa4 {[%clk 0:00:15.6]} 22. Qb6+ {[%clk 0:00:28.5]} 22... Ke8 {[%clk 0:00:13.2]} 23. Qb8+ {[%clk 0:00:22.5]} 23... Kf7 {[%clk 0:00:12.3]} 24. Qxd6 {[%clk 0:00:21.3]} 24... Re8 {[%clk 0:00:06.2]} 25. Qe6+ {[%clk 0:00:20.4]} 25... Kf8 {[%clk 0:00:05.4]} 26. Rc8 {[%clk 0:00:17]} 26... Rxc8 {[%clk 0:00:03]} 27. d6 {[%clk 0:00:12.1]} 1-0

[Event "Live Chess"]
[Site "Chess.com"]
[Date "2010.12.12"]
[Round "-"]
[White "PaperTiger"]
[Black "hipposcottimus"]
[Result "0-1"]
[CurrentPosition "5rk1/pp4pp/5q2/2p2p2/2P5/1Pb1Q1N1/P4PPP/R6K w - -"]
[Timezone "UTC"]
[ECO "C23"]
[ECOUrl "https://www.chess.com/openings/Bishops-Opening-2...Nc6"]
[UTCDate "2010.12.12"]
[UTCTime "03:20:35"]
[WhiteElo "1481"]
[BlackElo "1631"]
[TimeControl "60"]
[Termination "hipposcottimus won on time"]
[StartTime "03:20:35"]
[EndDate "2010.12.12"]
[EndTime "03:22:29"]
[Link "https://www.chess.com/game/live/76429228"]

1. e4 {[%clk 0:01:00]} 1... e5 {[%clk 0:01:00]} 2. Bc4 {[%clk 0:00:58.9]} 2... Nc6 {[%clk 0:00:59.7]} 3. c3 {[%clk 0:00:58.2]} 3... Nf6 {[%clk 0:00:58.8]} 4. d3 {[%clk 0:00:57.5]} 4... d5 {[%clk 0:00:58.6]} 5. exd5 {[%clk 0:00:54.9]} 5... Nxd5 {[%clk 0:00:58.3]} 6. Ne2 {[%clk 0:00:54.4]} 6... Bc5 {[%clk 0:00:51.6]} 7. O-O {[%clk 0:00:53.1]} 7... Bb6 {[%clk 0:00:50.6]} 8. Ng3 {[%clk 0:00:52]} 8... O-O {[%clk 0:00:50.1]} 9. Qf3 {[%clk 0:00:50.9]} 9... Be6 {[%clk 0:00:47.3]} 10. Nd2 {[%clk 0:00:48.5]} 10... Nf4 {[%clk 0:00:45.6]} 11. Nde4 {[%clk 0:00:41.5]} 11... Bxc4 {[%clk 0:00:40.8]} 12. dxc4 {[%clk 0:00:40.7]} 12... f5 {[%clk 0:00:35.1]} 13. Bxf4 {[%clk 0:00:36.8]} 13... exf4 {[%clk 0:00:33.5]} 14. Qxf4 {[%clk 0:00:35.6]} 14... Qe7 {[%clk 0:00:28.9]} 15. Nd2 {[%clk 0:00:29.3]} 15... Ne5 {[%clk 0:00:25.2]} 16. b3 {[%clk 0:00:27.2]} 16... c5 {[%clk 0:00:22.2]} 17. Rfe1 {[%clk 0:00:24.3]} 17... Rae8 {[%clk 0:00:20.8]} 18. Kh1 {[%clk 0:00:20.5]} 18... Bc7 {[%clk 0:00:19.3]} 19. Nf3 {[%clk 0:00:11.1]} 19... Qf6 {[%clk 0:00:18.6]} 20. Nxe5 {[%clk 0:00:06.5]} 20... Rxe5 {[%clk 0:00:17.8]} 21. Rxe5 {[%clk 0:00:02.9]} 21... Bxe5 {[%clk 0:00:17.5]} 22. Qe3 {[%clk 0:00:01.4]} 22... Bxc3 {[%clk 0:00:16.5]} 0-1